[Event "Late-Titled-Tuesday-Blitz-January-23-2024"]
[Site "Chess.com"]
[Date "2024.01.23"]
[Round "3"]
[White "Zq1"]
[Black "brm72"]
[Result "0-1"]
[WhiteElo "2467"]
[BlackElo "2678"]
[TimeControl "180+1"]
[EndTime "14:28:36 PST"]
[Termination "brm72 won by resignation"]

1. d4 {[%clk 0:03:00.9]} 1... Nf6 {[%clk 0:02:59.9]} 2. c4 {[%clk 0:03:00.7]}
2... e6 {[%clk 0:03:00.1]} 3. Nf3 {[%clk 0:02:58.7]} 3... c5 {[%clk 0:03:00.3]}
4. d5 {[%clk 0:02:56.7]} 4... exd5 {[%clk 0:03:01.2]} 5. cxd5 {[%clk 0:02:56.3]}
5... g6 {[%clk 0:03:01.8]} 6. Nc3 {[%clk 0:02:55.3]} 6... d6 {[%clk 0:03:01.9]}
7. h3 {[%clk 0:02:53.1]} 7... Bg7 {[%clk 0:03:02.1]} 8. e4 {[%clk 0:02:53.1]}
8... O-O {[%clk 0:03:01.4]} 9. Bd3 {[%clk 0:02:53.1]} 9... b5 {[%clk 0:02:48.4]}
10. O-O {[%clk 0:02:49.8]} 10... b4 {[%clk 0:02:45.4]} 11. Ne2 {[%clk
0:02:49.2]} 11... Re8 {[%clk 0:02:42.9]} 12. Ng3 {[%clk 0:02:49]} 12... c4
{[%clk 0:02:17.8]} 13. Bc2 {[%clk 0:02:47.2]} 13... Nbd7 {[%clk 0:02:17.2]} 14.
Re1 {[%clk 0:02:42.6]} 14... Nc5 {[%clk 0:02:16.6]} 15. Bf4 {[%clk 0:02:26.5]}
15... Bb7 {[%clk 0:02:01.3]} 16. Nd4 {[%clk 0:02:20.9]} 16... Qb6 {[%clk
0:01:40.2]} 17. b3 {[%clk 0:02:07.9]} 17... Ncxe4 {[%clk 0:01:18.9]} 18. Nxe4
{[%clk 0:01:59.8]} 18... Nxe4 {[%clk 0:01:18.7]} 19. Rxe4 {[%clk 0:01:49]} 19...
Rxe4 {[%clk 0:01:14]} 20. Bxe4 {[%clk 0:01:48.8]} 20... Bxd4 {[%clk 0:01:14.5]}
21. bxc4 {[%clk 0:01:44.2]} 21... Bxf2+ {[%clk 0:01:01.5]} 22. Kh1 {[%clk
0:01:38.1]} 22... Re8 {[%clk 0:01:00.3]} 23. Qd3 {[%clk 0:01:30.8]} 23... Qd4
{[%clk 0:00:52.3]} 24. Qxd4 {[%clk 0:01:05.4]} 24... Bxd4 {[%clk 0:00:52.8]} 25.
Re1 {[%clk 0:00:45.6]} 25... f5 {[%clk 0:00:51.9]} 26. Bxd6 {[%clk 0:00:44.8]}
26... fxe4 {[%clk 0:00:47.4]} 27. Bxb4 {[%clk 0:00:39.5]} 27... e3 {[%clk
0:00:46.8]} 28. d6 {[%clk 0:00:31.3]} 28... Bc6 {[%clk 0:00:41.9]} 29. Rd1
{[%clk 0:00:24.6]} 29... Be5 {[%clk 0:00:15.8]} 30. Re1 {[%clk 0:00:21.5]} 30...
Bg3 {[%clk 0:00:15.4]} 31. Re2 {[%clk 0:00:21.6]} 31... Kf7 {[%clk 0:00:12.5]}
32. Kg1 {[%clk 0:00:20.2]} 32... Re4 {[%clk 0:00:12.5]} 33. Kf1 {[%clk
0:00:14.3]} 33... Rxc4 {[%clk 0:00:12.1]} 34. Rxe3 {[%clk 0:00:14.6]} 34... Rxb4
{[%clk 0:00:08.7]} 35. Rxg3 {[%clk 0:00:14.4]} 35... Ke6 {[%clk 0:00:09.1]} 36.
Ra3 {[%clk 0:00:11]} 36... Bb5+ {[%clk 0:00:08.3]} 37. Kf2 {[%clk 0:00:10.1]}
37... a6 {[%clk 0:00:08.9]} 38. h4 {[%clk 0:00:07.5]} 38... Kxd6 {[%clk
0:00:09.2]} 39. h5 {[%clk 0:00:07.8]} 39... Ra4 {[%clk 0:00:08.6]} 40. Rh3
{[%clk 0:00:05.2]} 40... Rxa2+ {[%clk 0:00:08.5]} 41. Kg3 {[%clk 0:00:05.7]}
41... g5 {[%clk 0:00:08.4]} 42. h6 {[%clk 0:00:04.2]} 42... Bc6 {[%clk
0:00:08.3]} 0-1

[Event "Late-Titled-Tuesday-Blitz-January-23-2024"]
[Site "Chess.com"]
[Date "2024.01.23"]
[Round "3"]
[White "valeriocarnicelli"]
[Black "ChristopherYoo"]
[Result "0-1"]
[WhiteElo "2530"]
[BlackElo "2972"]
[TimeControl "180+1"]
[EndTime "14:28:37 PST"]
[Termination "ChristopherYoo won on time"]

1. e4 {[%clk 0:03:00.9]} 1... c5 {[%clk 0:02:56.8]} 2. Nf3 {[%clk 0:03:01.2]}
2... Nc6 {[%clk 0:02:55]} 3. d4 {[%clk 0:03:00.5]} 3... cxd4 {[%clk 0:02:54.6]}
4. Nxd4 {[%clk 0:03:01.4]} 4... Nf6 {[%clk 0:02:54.6]} 5. Nc3 {[%clk 0:03:01.8]}
5... e5 {[%clk 0:02:53.4]} 6. Ndb5 {[%clk 0:03:02]} 6... d6 {[%clk 0:02:52.9]}
7. Bg5 {[%clk 0:03:01.7]} 7... a6 {[%clk 0:02:47.5]} 8. Bxf6 {[%clk 0:03:01.9]}
8... gxf6 {[%clk 0:02:47.1]} 9. Na3 {[%clk 0:03:02.6]} 9... b5 {[%clk
0:02:39.5]} 10. Nd5 {[%clk 0:03:02.9]} 10... f5 {[%clk 0:02:33.8]} 11. Bxb5
{[%clk 0:03:01.9]} 11... axb5 {[%clk 0:02:25.2]} 12. Nxb5 {[%clk 0:03:02.8]}
12... Rb8 {[%clk 0:02:02.9]} 13. Nbc7+ {[%clk 0:03:01.3]} 13... Kd7 {[%clk
0:02:00.9]} 14. Qh5 {[%clk 0:03:01.1]} 14... Ne7 {[%clk 0:01:45.3]} 15. Qxf7
{[%clk 0:02:53.2]} 15... Kc6 {[%clk 0:01:45.5]} 16. Nxe7+ {[%clk 0:02:47.1]}
16... Bxe7 {[%clk 0:01:35.3]} 17. Qc4+ {[%clk 0:02:43.5]} 17... Kd7 {[%clk
0:01:18.8]} 18. Nd5 {[%clk 0:02:37.1]} 18... Qa5+ {[%clk 0:01:13.2]} 19. b4
{[%clk 0:02:32.5]} 19... Ba6 {[%clk 0:00:59.3]} 20. Qc3 {[%clk 0:01:47.2]} 20...
Qd8 {[%clk 0:00:59.1]} 21. Qh3 {[%clk 0:01:45.7]} 21... Qc8 {[%clk 0:00:48.3]}
22. O-O-O {[%clk 0:01:22.6]} 22... Kd8 {[%clk 0:00:34.4]} 23. Nxe7 {[%clk
0:01:16.2]} 23... Kxe7 {[%clk 0:00:34.5]} 24. Qh4+ {[%clk 0:01:16.7]} 24... Kd7
{[%clk 0:00:33.9]} 25. Qf6 {[%clk 0:01:16.2]} 25... Rb6 {[%clk 0:00:20.3]} 26.
Qxe5 {[%clk 0:00:48.8]} 26... fxe4 {[%clk 0:00:18.3]} 27. Qg7+ {[%clk
0:00:38.5]} 27... Kc6 {[%clk 0:00:17.1]} 28. Rd4 {[%clk 0:00:31.4]} 28... Qf8
{[%clk 0:00:13.7]} 29. Qa7 {[%clk 0:00:18.6]} 29... Qf4+ {[%clk 0:00:04.6]} 30.
Kb1 {[%clk 0:00:18.7]} 30... Qxf2 {[%clk 0:00:04.9]} 31. Rhd1 {[%clk 0:00:17.7]}
31... Rxb4+ {[%clk 0:00:05.1]} 32. Ka1 {[%clk 0:00:15.6]} 32... Rxd4 {[%clk
0:00:05.4]} 33. Qxa6+ {[%clk 0:00:14.2]} 33... Kd5 {[%clk 0:00:03.3]} 34. Qb5+
{[%clk 0:00:03.8]} 34... Ke6 {[%clk 0:00:03.6]} 35. Qb3+ {[%clk 0:00:04.2]}
35... Ke5 {[%clk 0:00:04.2]} 36. Qb5+ {[%clk 0:00:03.7]} 36... d5 {[%clk
0:00:04.2]} 37. Qb2 {[%clk 0:00:03.9]} 37... Rc8 {[%clk 0:00:02.5]} 38. Kb1
{[%clk 0:00:02.1]} 38... Qe3 {[%clk 0:00:02.2]} 39. a4 {[%clk 0:00:01.8]} 39...
Qc3 {[%clk 0:00:02.7]} 0-1

[Event "Late-Titled-Tuesday-Blitz-January-23-2024"]
[Site "Chess.com"]
[Date "2024.01.23"]
[Round "3"]
[White "Statham_01"]
[Black "JaackCamel"]
[Result "1-0"]
[WhiteElo "2547"]
[BlackElo "2168"]
[TimeControl "180+1"]
[EndTime "14:28:37 PST"]
[Termination "Statham_01 won on time"]

1. e4 {[%clk 0:03:00.9]} 1... e6 {[%clk 0:02:59.5]} 2. d4 {[%clk 0:02:59]} 2...
d5 {[%clk 0:02:59.4]} 3. Nc3 {[%clk 0:02:58.6]} 3... Bb4 {[%clk 0:02:58.4]} 4.
Qg4 {[%clk 0:02:58.8]} 4... Nf6 {[%clk 0:02:50.7]} 5. Qxg7 {[%clk 0:02:58.8]}
5... Rg8 {[%clk 0:02:50]} 6. Qh6 {[%clk 0:02:59]} 6... dxe4 {[%clk 0:02:35.5]}
7. Ne2 {[%clk 0:02:47.8]} 7... c5 {[%clk 0:02:23.4]} 8. Bg5 {[%clk 0:02:34.8]}
8... Rg6 {[%clk 0:02:17.6]} 9. Qh4 {[%clk 0:02:34.8]} 9... cxd4 {[%clk
0:02:02.9]} 10. O-O-O {[%clk 0:02:34.8]} 10... Nc6 {[%clk 0:01:32]} 11. Nxe4
{[%clk 0:02:23.4]} 11... Be7 {[%clk 0:01:15.4]} 12. Bxf6 {[%clk 0:01:49]} 12...
Bxf6 {[%clk 0:01:13.5]} 13. Qxh7 {[%clk 0:01:45.7]} 13... e5 {[%clk 0:00:58.8]}
14. N2g3 {[%clk 0:01:32.7]} 14... Be6 {[%clk 0:00:54.6]} 15. Bd3 {[%clk
0:00:55.2]} 15... Rg7 {[%clk 0:00:29.7]} 16. Qh8+ {[%clk 0:00:47.5]} 16... Kd7
{[%clk 0:00:20.3]} 17. Qxd8+ {[%clk 0:00:41.3]} 17... Bxd8 {[%clk 0:00:19.4]}
18. Nc5+ {[%clk 0:00:41.6]} 18... Kc7 {[%clk 0:00:18.6]} 19. Nxe6+ {[%clk
0:00:39.8]} 19... fxe6 {[%clk 0:00:18.6]} 20. Rde1 {[%clk 0:00:35.6]} 20... Be7
{[%clk 0:00:15.5]} 21. a3 {[%clk 0:00:35]} 21... Rf8 {[%clk 0:00:14.3]} 22. f3
{[%clk 0:00:34.2]} 22... a6 {[%clk 0:00:13.8]} 23. Kb1 {[%clk 0:00:33.4]} 23...
b5 {[%clk 0:00:11.7]} 24. Rhg1 {[%clk 0:00:31.9]} 24... Bh4 {[%clk 0:00:10.9]}
25. Be4 {[%clk 0:00:14.6]} 25... Na5 {[%clk 0:00:10.7]} 26. Rh1 {[%clk
0:00:07.9]} 26... Nc4 {[%clk 0:00:10.3]} 27. b3 {[%clk 0:00:04.4]} 27... Ne3
{[%clk 0:00:10.4]} 28. Re2 {[%clk 0:00:02.7]} 28... Rh8 {[%clk 0:00:09]} 29. Nf1
{[%clk 0:00:02.1]} 29... Bg5 {[%clk 0:00:07.4]} 30. Nxe3 {[%clk 0:00:02.5]}
30... Bxe3 {[%clk 0:00:07.5]} 31. h3 {[%clk 0:00:03.2]} 31... Rg3 {[%clk
0:00:06.9]} 32. h4 {[%clk 0:00:03.3]} 32... Rh5 {[%clk 0:00:06.3]} 33. Bg6
{[%clk 0:00:03.2]} 33... Rxg6 {[%clk 0:00:05.7]} 34. g4 {[%clk 0:00:04.1]} 34...
Rh8 {[%clk 0:00:04.4]} 35. h5 {[%clk 0:00:04.7]} 35... Rg5 {[%clk 0:00:03.8]}
36. Kb2 {[%clk 0:00:05.3]} 36... Kd6 {[%clk 0:00:03.9]} 37. c3 {[%clk
0:00:05.2]} 37... Kd5 {[%clk 0:00:02.7]} 38. Kc2 {[%clk 0:00:05.8]} 38... Rf8
{[%clk 0:00:01.1]} 39. Kd3 {[%clk 0:00:06.1]} 1-0

[Event "Late-Titled-Tuesday-Blitz-January-23-2024"]
[Site "Chess.com"]
[Date "2024.01.23"]
[Round "3"]
[White "UnTucopalaTimba"]
[Black "KorolDimitriy75"]
[Result "0-1"]
[WhiteElo "1942"]
[BlackElo "2355"]
[TimeControl "180+1"]
[EndTime "14:28:37 PST"]
[Termination "KorolDimitriy75 won by resignation"]

1. e4 {[%clk 0:02:58.8]} 1... c5 {[%clk 0:03:00.1]} 2. Nf3 {[%clk 0:02:57.8]}
2... d6 {[%clk 0:03:00.3]} 3. Bb5+ {[%clk 0:02:56.9]} 3... Nd7 {[%clk
0:02:59.9]} 4. d4 {[%clk 0:02:56.3]} 4... Nf6 {[%clk 0:02:59.1]} 5. e5 {[%clk
0:02:51.2]} 5... cxd4 {[%clk 0:02:58.2]} 6. O-O {[%clk 0:02:42.3]} 6... dxe5
{[%clk 0:02:55.8]} 7. Nxe5 {[%clk 0:02:40.3]} 7... g6 {[%clk 0:02:55.5]} 8. Nxd7
{[%clk 0:02:37.5]} 8... Bxd7 {[%clk 0:02:54.7]} 9. Qd3 {[%clk 0:02:33.7]} 9...
Bg7 {[%clk 0:02:51.4]} 10. Rd1 {[%clk 0:02:24.3]} 10... a6 {[%clk 0:01:51.6]}
11. Bxd7+ {[%clk 0:02:21.9]} 11... Nxd7 {[%clk 0:01:52.5]} 12. Na3 {[%clk
0:02:15.8]} 12... O-O {[%clk 0:01:51.1]} 13. Bg5 {[%clk 0:02:09.6]} 13... Re8
{[%clk 0:01:41.4]} 14. Nc4 {[%clk 0:02:06.1]} 14... Qc7 {[%clk 0:01:32.7]} 15.
Re1 {[%clk 0:01:56.7]} 15... e5 {[%clk 0:01:30.1]} 16. Rad1 {[%clk 0:01:35.5]}
16... Nc5 {[%clk 0:01:21.7]} 17. Qg3 {[%clk 0:01:28.9]} 17... h6 {[%clk
0:01:12]} 18. Bc1 {[%clk 0:01:24]} 18... b5 {[%clk 0:01:04.1]} 19. Nd2 {[%clk
0:01:18.5]} 19... Qc6 {[%clk 0:01:03.9]} 20. Nb3 {[%clk 0:01:12.7]} 20... Nxb3
{[%clk 0:01:03.2]} 21. cxb3 {[%clk 0:01:12.4]} 21... Kh7 {[%clk 0:01:00.4]} 22.
Qh4 {[%clk 0:01:06.1]} 22... e4 {[%clk 0:00:51.2]} 23. Qf4 {[%clk 0:01:02.7]}
23... f5 {[%clk 0:00:49.2]} 24. g4 {[%clk 0:01:00.2]} 24... Qd5 {[%clk
0:00:44.6]} 25. gxf5 {[%clk 0:00:56.9]} 25... Qxf5 {[%clk 0:00:41.4]} 26. Qxf5
{[%clk 0:00:46.6]} 26... gxf5 {[%clk 0:00:42.3]} 27. Bf4 {[%clk 0:00:45]} 27...
Rac8 {[%clk 0:00:38.8]} 28. Rd2 {[%clk 0:00:41.4]} 28... d3 {[%clk 0:00:27.5]}
29. f3 {[%clk 0:00:33.8]} 29... Bd4+ {[%clk 0:00:10.3]} 30. Kh1 {[%clk
0:00:28.1]} 30... Kg6 {[%clk 0:00:09.6]} 31. Rg2+ {[%clk 0:00:19.2]} 31... Kf7
{[%clk 0:00:09.6]} 32. fxe4 {[%clk 0:00:18.1]} 32... fxe4 {[%clk 0:00:10.5]} 33.
Bxh6 {[%clk 0:00:16.9]} 33... Rc2 {[%clk 0:00:09.5]} 34. Rxc2 {[%clk 0:00:13]}
34... dxc2 {[%clk 0:00:09.4]} 35. Rf1+ {[%clk 0:00:12.8]} 35... Ke6 {[%clk
0:00:09.4]} 36. Rc1 {[%clk 0:00:12.6]} 36... Rc8 {[%clk 0:00:09.5]} 37. Kg2
{[%clk 0:00:08.1]} 37... Bxb2 {[%clk 0:00:09.3]} 38. Kf2 {[%clk 0:00:07.5]}
38... Bxc1 {[%clk 0:00:08.5]} 39. Bxc1 {[%clk 0:00:07.6]} 39... Kd5 {[%clk
0:00:08.4]} 40. Ke3 {[%clk 0:00:07.2]} 40... Rh8 {[%clk 0:00:07.6]} 0-1

[Event "Late-Titled-Tuesday-Blitz-January-23-2024"]
[Site "Chess.com"]
[Date "2024.01.23"]
[Round "3"]
[White "bescmelasti"]
[Black "Walter_White_Poland"]
[Result "1-0"]
[WhiteElo "2691"]
[BlackElo "2346"]
[TimeControl "180+1"]
[EndTime "14:28:39 PST"]
[Termination "bescmelasti won by resignation"]

1. e4 {[%clk 0:02:58.5]} 1... e5 {[%clk 0:02:59.4]} 2. Nf3 {[%clk 0:02:58.5]}
2... Nc6 {[%clk 0:02:59.2]} 3. Bb5 {[%clk 0:02:59]} 3... a6 {[%clk 0:02:58.7]}
4. Ba4 {[%clk 0:02:59.6]} 4... Nf6 {[%clk 0:02:58.3]} 5. d3 {[%clk 0:02:59.4]}
5... d6 {[%clk 0:02:57.5]} 6. c3 {[%clk 0:02:56.3]} 6... Nd7 {[%clk 0:02:55.7]}
7. O-O {[%clk 0:02:53.2]} 7... g6 {[%clk 0:02:55.7]} 8. Bg5 {[%clk 0:02:51.4]}
8... Be7 {[%clk 0:02:52.9]} 9. Bh6 {[%clk 0:02:49]} 9... Bf8 {[%clk 0:02:52.7]}
10. Bg5 {[%clk 0:02:48.9]} 10... Be7 {[%clk 0:02:52.5]} 11. Bh6 {[%clk 0:02:45]}
11... Bf8 {[%clk 0:02:52.3]} 12. Bxf8 {[%clk 0:02:45.7]} 12... Kxf8 {[%clk
0:02:52.2]} 13. d4 {[%clk 0:02:45.3]} 13... Kg7 {[%clk 0:02:47.2]} 14. Nbd2
{[%clk 0:02:44.1]} 14... Qe7 {[%clk 0:02:45.9]} 15. Re1 {[%clk 0:02:42.5]} 15...
Nb6 {[%clk 0:02:44.1]} 16. Bc2 {[%clk 0:02:41.5]} 16... h5 {[%clk 0:02:40.6]}
17. a4 {[%clk 0:02:39.7]} 17... a5 {[%clk 0:02:35.9]} 18. h3 {[%clk 0:02:37.6]}
18... h4 {[%clk 0:02:14.7]} 19. Nf1 {[%clk 0:02:36.2]} 19... Bd7 {[%clk
0:02:05.8]} 20. Ne3 {[%clk 0:02:30.7]} 20... Nd8 {[%clk 0:01:24.4]} 21. b4
{[%clk 0:01:40.5]} 21... f6 {[%clk 0:01:22.3]} 22. Bb3 {[%clk 0:01:34.6]} 22...
Ne6 {[%clk 0:01:19.8]} 23. Qd2 {[%clk 0:01:25]} 23... Nf4 {[%clk 0:01:18.5]} 24.
c4 {[%clk 0:01:13.1]} 24... c5 {[%clk 0:01:07.4]} 25. dxe5 {[%clk 0:01:04.1]}
25... dxe5 {[%clk 0:00:58.2]} 26. bxa5 {[%clk 0:01:03.6]} 26... Nc8 {[%clk
0:00:48.6]} 27. Rad1 {[%clk 0:01:02.6]} 27... Bc6 {[%clk 0:00:48]} 28. Nd5
{[%clk 0:01:02.7]} 28... Bxd5 {[%clk 0:00:44.5]} 29. exd5 {[%clk 0:01:03]} 29...
Nd6 {[%clk 0:00:43.9]} 30. Qxf4 {[%clk 0:01:02.1]} 30... Rxa5 {[%clk 0:00:43.1]}
31. Qg4 {[%clk 0:00:54.9]} 31... f5 {[%clk 0:00:37.9]} 32. Qg5 {[%clk 0:00:52]}
32... Qxg5 {[%clk 0:00:37.5]} 33. Nxg5 {[%clk 0:00:52.9]} 33... Kf6 {[%clk
0:00:36.6]} 34. Ne6 {[%clk 0:00:50.6]} 34... e4 {[%clk 0:00:32.8]} 35. f3 {[%clk
0:00:48]} 35... Ke5 {[%clk 0:00:31.3]} 36. fxe4 {[%clk 0:00:47.2]} 36... Nxe4
{[%clk 0:00:31.5]} 37. Bc2 {[%clk 0:00:46.9]} 37... Rha8 {[%clk 0:00:26]} 38.
Re2 {[%clk 0:00:45.2]} 38... b6 {[%clk 0:00:23.2]} 39. Bxe4 {[%clk 0:00:44.3]}
39... fxe4 {[%clk 0:00:22.8]} 40. Rde1 {[%clk 0:00:45.2]} 40... Rxa4 {[%clk
0:00:21.7]} 41. Rxe4+ {[%clk 0:00:46.1]} 41... Kd6 {[%clk 0:00:22]} 42. Nf4
{[%clk 0:00:44.8]} 42... Ra1 {[%clk 0:00:20.7]} 43. Re6+ {[%clk 0:00:43.5]}
43... Kd7 {[%clk 0:00:20.5]} 44. Rxa1 {[%clk 0:00:43.7]} 44... Rxa1+ {[%clk
0:00:21]} 45. Kf2 {[%clk 0:00:44.6]} 45... g5 {[%clk 0:00:21.5]} 46. Ng6 {[%clk
0:00:44.3]} 46... b5 {[%clk 0:00:20.6]} 47. cxb5 {[%clk 0:00:43.6]} 47... Rd1
{[%clk 0:00:20.7]} 48. Ne5+ {[%clk 0:00:42.2]} 48... Kd8 {[%clk 0:00:20.6]} 49.
d6 {[%clk 0:00:42.5]} 49... c4 {[%clk 0:00:17.7]} 50. d7 {[%clk 0:00:41]} 50...
Kc7 {[%clk 0:00:15.1]} 51. Rc6+ {[%clk 0:00:40.5]} 51... Kb7 {[%clk 0:00:14.8]}
52. Rxc4 {[%clk 0:00:40.4]} 52... g4 {[%clk 0:00:14.9]} 53. hxg4 {[%clk
0:00:40.1]} 53... h3 {[%clk 0:00:15]} 54. gxh3 {[%clk 0:00:41]} 54... Rd5 {[%clk
0:00:14.7]} 55. Rc8 {[%clk 0:00:40.8]} 55... Rxe5 {[%clk 0:00:12.6]} 56. d8=Q
{[%clk 0:00:40.2]} 56... Rf5+ {[%clk 0:00:05.2]} 57. gxf5 {[%clk 0:00:41.1]} 1-0

[Event "Late-Titled-Tuesday-Blitz-January-23-2024"]
[Site "Chess.com"]
[Date "2024.01.23"]
[Round "3"]
[White "tigurones"]
[Black "Josgar05"]
[Result "1/2-1/2"]
[WhiteElo "2492"]
[BlackElo "2325"]
[TimeControl "180+1"]
[EndTime "14:28:40 PST"]
[Termination "Game drawn by repetition"]

1. d4 {[%clk 0:03:00.9]} 1... d5 {[%clk 0:02:59.5]} 2. Nc3 {[%clk 0:03:00.3]}
2... c5 {[%clk 0:02:49.5]} 3. Nf3 {[%clk 0:02:59.9]} 3... Nc6 {[%clk 0:02:49.3]}
4. e3 {[%clk 0:02:53.7]} 4... Nf6 {[%clk 0:02:47.4]} 5. g3 {[%clk 0:02:42.9]}
5... Bf5 {[%clk 0:02:35.3]} 6. a3 {[%clk 0:02:38]} 6... e6 {[%clk 0:02:33.7]} 7.
dxc5 {[%clk 0:02:35.3]} 7... Bxc5 {[%clk 0:02:32.7]} 8. Nd4 {[%clk 0:02:35.5]}
8... Bg6 {[%clk 0:02:26.9]} 9. Bg2 {[%clk 0:02:20.8]} 9... O-O {[%clk
0:02:25.1]} 10. O-O {[%clk 0:02:20.4]} 10... Rc8 {[%clk 0:02:23.2]} 11. Nxc6
{[%clk 0:02:07.1]} 11... bxc6 {[%clk 0:02:24.1]} 12. b4 {[%clk 0:02:04]} 12...
Bd6 {[%clk 0:02:08.3]} 13. Bb2 {[%clk 0:01:55]} 13... h5 {[%clk 0:02:05.3]} 14.
Ne2 {[%clk 0:01:50.3]} 14... e5 {[%clk 0:02:05.2]} 15. c4 {[%clk 0:01:48.3]}
15... dxc4 {[%clk 0:01:53]} 16. Qa4 {[%clk 0:01:25]} 16... Bd3 {[%clk
0:01:49.2]} 17. Rfe1 {[%clk 0:01:24.1]} 17... h4 {[%clk 0:01:49.1]} 18. Rad1
{[%clk 0:01:14.8]} 18... hxg3 {[%clk 0:01:38.4]} 19. hxg3 {[%clk 0:01:15.7]}
19... Qc7 {[%clk 0:01:33.1]} 20. Nc1 {[%clk 0:00:53.3]} 20... Be4 {[%clk
0:01:21]} 21. Bxe4 {[%clk 0:00:49.2]} 21... Nxe4 {[%clk 0:01:21.9]} 22. Qc2
{[%clk 0:00:49.3]} 22... Ng5 {[%clk 0:01:20.5]} 23. Kg2 {[%clk 0:00:40.3]} 23...
c5 {[%clk 0:00:49.8]} 24. Qf5 {[%clk 0:00:37.7]} 24... f6 {[%clk 0:00:30.1]} 25.
f4 {[%clk 0:00:29.9]} 25... exf4 {[%clk 0:00:25.4]} 26. gxf4 {[%clk 0:00:30.1]}
26... Qb7+ {[%clk 0:00:20.2]} 27. e4 {[%clk 0:00:30]} 27... cxb4 {[%clk
0:00:18.7]} 28. fxg5 {[%clk 0:00:12.5]} 28... fxg5 {[%clk 0:00:18.3]} 29. Qe6+
{[%clk 0:00:10.7]} 29... Rf7 {[%clk 0:00:18.9]} 30. Rxd6 {[%clk 0:00:07.5]}
30... c3 {[%clk 0:00:18.6]} 31. Ba1 {[%clk 0:00:05.9]} 31... Rf8 {[%clk
0:00:18.2]} 32. Red1 {[%clk 0:00:02.9]} 32... b3 {[%clk 0:00:18.4]} 33. Bxc3
{[%clk 0:00:02.5]} 33... b2 {[%clk 0:00:18.5]} 34. Nd3 {[%clk 0:00:03]} 34...
b1=Q {[%clk 0:00:18.5]} 35. Rxb1 {[%clk 0:00:03]} 35... Qxb1 {[%clk 0:00:19.4]}
36. Ne5 {[%clk 0:00:03.4]} 36... Qc2+ {[%clk 0:00:19.6]} 37. Kg1 {[%clk
0:00:03.3]} 37... Qc1+ {[%clk 0:00:19.3]} 38. Kg2 {[%clk 0:00:03.4]} 38... Qxc3
{[%clk 0:00:19.5]} 39. Nxf7 {[%clk 0:00:03]} 39... Qc2+ {[%clk 0:00:19.8]} 40.
Kg1 {[%clk 0:00:03]} 40... Qc1+ {[%clk 0:00:20.4]} 41. Kg2 {[%clk 0:00:03.6]}
41... Qb2+ {[%clk 0:00:19.1]} 42. Kg1 {[%clk 0:00:02.8]} 42... Qc1+ {[%clk
0:00:14.5]} 43. Kg2 {[%clk 0:00:03.3]} 43... Qc2+ {[%clk 0:00:15]} 44. Kg1
{[%clk 0:00:03]} 44... Qc1+ {[%clk 0:00:15.5]} 1/2-1/2

[Event "Late-Titled-Tuesday-Blitz-January-23-2024"]
[Site "Chess.com"]
[Date "2024.01.23"]
[Round "3"]
[White "Rawnsdale"]
[Black "Hirna2005"]
[Result "0-1"]
[WhiteElo "2537"]
[BlackElo "2291"]
[TimeControl "180+1"]
[EndTime "14:28:41 PST"]
[Termination "Hirna2005 won by checkmate"]

1. e4 {[%clk 0:03:00.9]} 1... g6 {[%clk 0:03:00.1]} 2. d4 {[%clk 0:03:00.7]}
2... Bg7 {[%clk 0:03:00.4]} 3. Nf3 {[%clk 0:03:01.3]} 3... d6 {[%clk 0:03:00.7]}
4. Bd3 {[%clk 0:03:01.5]} 4... a6 {[%clk 0:03:00]} 5. O-O {[%clk 0:03:01.5]}
5... b5 {[%clk 0:02:57.8]} 6. c3 {[%clk 0:03:01.1]} 6... Bb7 {[%clk 0:02:58.1]}
7. a4 {[%clk 0:03:00.9]} 7... Qd7 {[%clk 0:02:49.1]} 8. Qe2 {[%clk 0:02:55.3]}
8... c6 {[%clk 0:02:43.6]} 9. Na3 {[%clk 0:02:26.3]} 9... Nf6 {[%clk 0:02:38.5]}
10. Bg5 {[%clk 0:02:18.2]} 10... O-O {[%clk 0:02:37.2]} 11. Rad1 {[%clk
0:02:08.7]} 11... bxa4 {[%clk 0:02:30.4]} 12. Nc4 {[%clk 0:02:07.9]} 12... Qc7
{[%clk 0:02:30.5]} 13. Rfe1 {[%clk 0:02:00.7]} 13... Re8 {[%clk 0:02:18.3]} 14.
e5 {[%clk 0:01:52.4]} 14... dxe5 {[%clk 0:02:16.9]} 15. Nfxe5 {[%clk 0:01:37.5]}
15... Nbd7 {[%clk 0:02:11.1]} 16. Nxf7 {[%clk 0:01:00.9]} 16... Kxf7 {[%clk
0:01:52]} 17. Qe6+ {[%clk 0:01:00.6]} 17... Kf8 {[%clk 0:01:51.8]} 18. Ne5
{[%clk 0:00:59.4]} 18... Nxe5 {[%clk 0:01:50.9]} 19. dxe5 {[%clk 0:00:59.6]}
19... Bc8 {[%clk 0:01:41.2]} 20. Qc4 {[%clk 0:00:47.4]} 20... Nd5 {[%clk
0:01:40.7]} 21. e6 {[%clk 0:00:39.8]} 21... Kg8 {[%clk 0:01:31.4]} 22. Be4
{[%clk 0:00:34.2]} 22... Be5 {[%clk 0:01:03.4]} 23. g3 {[%clk 0:00:27.5]} 23...
Bb7 {[%clk 0:00:56.9]} 24. f4 {[%clk 0:00:20.6]} 24... Qb6+ {[%clk 0:00:52.4]}
25. Kg2 {[%clk 0:00:19.6]} 25... Ne3+ {[%clk 0:00:45.6]} 26. Rxe3 {[%clk
0:00:18.8]} 26... Qxe3 {[%clk 0:00:45.8]} 27. h4 {[%clk 0:00:11.2]} 27... Bg7
{[%clk 0:00:42.2]} 28. f5 {[%clk 0:00:11.5]} 28... Qb6 {[%clk 0:00:40.1]} 29.
fxg6 {[%clk 0:00:11.3]} 29... hxg6 {[%clk 0:00:36.5]} 30. Bxg6 {[%clk
0:00:12.2]} 30... Rf8 {[%clk 0:00:35.7]} 31. Bf7+ {[%clk 0:00:12.3]} 31... Kh8
{[%clk 0:00:30.4]} 32. Qg4 {[%clk 0:00:12.3]} 32... c5+ {[%clk 0:00:23.8]} 33.
Kh3 {[%clk 0:00:10.3]} 33... Rxf7 {[%clk 0:00:10.8]} 34. Qh5+ {[%clk 0:00:09.8]}
34... Kg8 {[%clk 0:00:08.6]} 35. Qxf7+ {[%clk 0:00:09.4]} 35... Kh8 {[%clk
0:00:09]} 36. Rf1 {[%clk 0:00:07]} 36... Rf8 {[%clk 0:00:05.2]} 37. Qh5+ {[%clk
0:00:06.7]} 37... Kg8 {[%clk 0:00:05.6]} 38. Rf7 {[%clk 0:00:07]} 38... Qxe6+
{[%clk 0:00:04]} 39. Rf5 {[%clk 0:00:04.4]} 39... Qxf5+ {[%clk 0:00:04.1]} 40.
Kh2 {[%clk 0:00:04.9]} 40... Qf3 {[%clk 0:00:04.3]} 41. Kh3 {[%clk 0:00:05.5]}
41... Qxh5 {[%clk 0:00:04.3]} 42. g4 {[%clk 0:00:05.8]} 42... Qg6 {[%clk
0:00:04.2]} 43. Kg3 {[%clk 0:00:06.7]} 43... Qe4 {[%clk 0:00:04.7]} 44. h5
{[%clk 0:00:07.6]} 44... Qf3+ {[%clk 0:00:05.2]} 45. Kh4 {[%clk 0:00:08.5]}
45... Qf2+ {[%clk 0:00:05.3]} 46. Kh3 {[%clk 0:00:08.3]} 46... Qg2+ {[%clk
0:00:05.6]} 47. Kh4 {[%clk 0:00:08.5]} 47... Qh2# {[%clk 0:00:06.3]} 0-1